fUSD/lending_fUSD_20241011
["ID","MTS","AMOUNT","RATE_DAILY","PERIOD"]
[340134277,1728669050559,-612.88,0.00028219,2]
[340134278,1728669050567,-833.24,0.00028219,2]
[340134279,1728669050577,-511.03953659,0.00028219,2]
[340134280,1728669050587,-528.11771919,0.00028219,2]
[340134281,1728669050596,-500.0,0.00028219,2]
[340134282,1728669050605,-500.0,0.00028219,2]
[340134283,1728669050615,-500.0,0.00028219,2]
[340134284,1728669050624,-257.10315481,0.00028219,2]
[340134285,1728669050633,-500.0,0.00028219,2]
[340134286,1728669050643,-782.03,0.00028219,2]
[340134287,1728669050652,-500.0,0.00028219,2]
[340134288,1728669050662,-20000.0,0.00028219,2]
[340134289,1728669050671,-1198.37,0.00028219,2]
[340134290,1728669050681,-580.16828845,0.00028219,2]
[340134291,1728669050690,-500.0,0.00028219,2]
[340134292,1728669050701,-500.0,0.00028219,2]
[340134293,1728669050710,-500.0,0.00028219,2]
[340134294,1728669050721,-500.0,0.00028219,2]
[340134295,1728669050730,-500.0,0.00028219,2]
[340134296,1728669050740,-500.0,0.00028219,2]
[340134297,1728669050749,-180.759435,0.00028219,7]
[340134298,1728669050759,-502.51825645,0.00028219,2]
[340134299,1728669050769,-151.0,0.00028219,7]
[340134300,1728669050779,-180.759435,0.00028219,7]
[340134301,1728669050789,-500.0,0.00028219,2]
[340134302,1728669050798,-500.0,0.00028219,2]
[340134303,1728669050807,-500.0,0.00028219,2]
[340134304,1728669050817,-151.0,0.00028219,7]
[340134305,1728669050826,-283.88807069,0.00028219,2]
[340134306,1728669050836,-1601.6,0.00028219,2]
[340134307,1728669050845,-500.0,0.00028219,2]
[340134308,1728669050855,-1185.2,0.00028219,2]
[340134309,1728669050864,-500.0,0.00028219,2]
[340134310,1728669050873,-689.79,0.00028219,2]
[340134311,1728669050883,-545.09,0.00028219,2]
[340134312,1728669050893,-151.0,0.00028219,7]
[340134313,1728669050902,-223.13,0.00028219,2]
[340134314,1728669050911,-500.0,0.00028219,2]
[340134315,1728669050920,-2408.32,0.00028219,2]
[340134316,1728669050930,-500.0,0.00028219,2]
[340134317,1728669050940,-500.0,0.00028219,2]
[340134318,1728669050950,-500.0,0.00028219,2]
[340134319,1728669050960,-900.34,0.00028219,2]
[340134320,1728669050974,-1346.47,0.00028219,7]
[340134321,1728669050983,-500.0,0.00028219,2]
[340134322,1728669050993,-500.0,0.00028219,2]
[340134323,1728669051004,-638.56,0.00028219,2]
[340134324,1728669051014,-155.816356,0.00028219,7]
[340134325,1728669051024,-1086.29,0.00028219,2]
[340134326,1728669051033,-1644.73,0.00028219,2]
[340134327,1728669051043,-518.17,0.00028219,2]
[340134328,1728669051053,-155.816356,0.00028219,7]
[340134329,1728669051063,-616.06,0.00028219,2]
[340134330,1728669051072,-500.0,0.00028219,2]
[340134331,1728669051082,-500.0,0.00028219,2]
[340134332,1728669051091,-500.0,0.00028219,2]
[340134333,1728669051100,-929.21,0.00028219,2]
[340134334,1728669051110,-500.0,0.00028219,2]
[340134335,1728669051119,-500.0,0.00028219,2]
[340134336,1728669051129,-500.0,0.00028219,2]
[340134337,1728669051138,-295.480051,0.00028219,7]
[340134338,1728669051148,-295.480051,0.00028219,7]
[340134339,1728669051158,-413.86860877,0.00028219,2]
[340134340,1728669051167,-500.0,0.00028219,2]
[340134341,1728669051177,-860.5,0.00028219,2]
[340134342,1728669051187,-500.0,0.00028219,2]
[340134343,1728669051196,-1559.13,0.00028219,2]
[340134344,1728669051205,-500.0,0.00028219,2]
[340134345,1728669051215,-500.0,0.00028219,2]
[340134346,1728669051224,-155.09060676,0.00028219,2]
[340134347,1728669051234,-500.0,0.00028219,2]
[340134348,1728669051243,-736.29,0.00028219,2]
[340134349,1728669051254,-500.0,0.00028219,2]
[340134350,1728669051264,-500.0,0.00028219,2]
[340134351,1728669051273,-655.69,0.00028219,2]
[340134352,1728669051283,-500.0,0.00028219,2]
[340134353,1728669051292,-500.0,0.00028219,2]
[340134354,1728669051302,-153.40016251,0.00028219,2]
[340134355,1728669051311,-500.0,0.00028219,2]
[340134356,1728669051321,-500.0,0.00028219,2]
[340134357,1728669051331,-499.2994,0.00028219,7]
[340134358,1728669051340,-956.59,0.00028219,2]
[340134359,1728669051350,-500.0,0.00028219,2]
[340134360,1728669051360,-629.26444039,0.00028219,2]
[340134361,1728669051370,-499.2994,0.00028219,7]
[340134362,1728669051379,-2475.83,0.00028219,2]
[340134363,1728669051389,-554.62,0.00028219,2]
[340134364,1728669051398,-500.0,0.00028219,2]
[340134365,1728669051407,-322.16402653,0.00028219,2]
[340134366,1728669051416,-921.55,0.00028219,2]
[340134367,1728669051425,-500.0,0.00028219,2]
[340134368,1728669051435,-500.0,0.00028219,2]
[340134369,1728669051444,-210.96406363,0.00028219,2]
[340134370,1728669051455,-500.0,0.00028219,2]
[340134371,1728669051465,-458.555401,0.00028219,7]
[340134372,1728669051474,-500.0,0.00028219,2]
[340134373,1728669051483,-458.555401,0.00028219,7]
[340134374,1728669051492,-661.98,0.00028219,2]
[340134375,1728669051501,-500.0,0.00028219,2]
[340134376,1728669051510,-774.31,0.00028219,2]
[340134377,1728669051520,-500.0,0.00028219,2]
[340134378,1728669051529,-520.53876974,0.00028219,2]
[340134379,1728669051538,-652.46,0.00028219,2]
[340134380,1728669051547,-500.0,0.00028219,2]
[340134381,1728669051557,-500.0,0.00028219,2]
[340134382,1728669051566,-500.0,0.00028219,2]
[340134383,1728669051575,-2496.26,0.00028219,2]
[340134384,1728669051585,-500.0,0.00028219,2]
[340134385,1728669051594,-500.0,0.00028219,2]
[340134386,1728669051603,-500.0,0.00028219,2]
[340134387,1728669051613,-500.0,0.00028219,2]
[340134388,1728669051622,-292.64992153,0.00028219,2]
[340134389,1728669051631,-14424.26,0.00028219,2]
[340134390,1728669051641,-500.0,0.00028219,2]
[340134391,1728669051650,-500.0,0.00028219,2]
[340134392,1728669051659,-1022.42,0.00028219,2]
[340134393,1728669051669,-537.36133271,0.00028219,2]
[340134394,1728669051678,-500.0,0.00028219,2]
[340134395,1728669051687,-500.0,0.00028219,2]
[340134396,1728669051697,-500.0,0.00028219,2]
[340134397,1728669051706,-151.0,0.00028219,7]
[340134398,1728669051716,-500.0,0.00028219,2]
[340134399,1728669051725,-500.0,0.00028219,2]
[340134400,1728669051735,-573.42,0.00028219,2]
[340134401,1728669051745,-500.0,0.00028219,2]
[340134402,1728669051754,-1278.84,0.00028219,2]
[340134403,1728669051764,-1628.92,0.00028219,2]
[340134404,1728669051773,-500.0,0.00028219,2]
[340134405,1728669051783,-500.0,0.00028219,2]
[340134406,1728669051793,-542.97033011,0.00028219,2]
[340134407,1728669051803,-500.0,0.00028219,2]
[340134408,1728669051812,-186.85420235,0.00028219,2]
[340134409,1728669051822,-500.0,0.00028219,2]
[340134410,1728669051831,-500.0,0.00028219,2]
[340134411,1728669051841,-3741.28,0.00028219,2]
[340134412,1728669051851,-151.0,0.00028219,7]
[340134413,1728669051861,-151.0,0.00028219,7]
[340134414,1728669051871,-500.0,0.00028219,2]
[340134415,1728669051881,-634.54,0.00028219,2]
[340134416,1728669051891,-3669.49,0.00028219,2]
[340134417,1728669051901,-151.0,0.00028219,7]
[340134418,1728669051910,-500.0,0.00028219,2]
[340134419,1728669051920,-500.0,0.00028219,2]
[340134420,1728669051930,-698.69,0.00028219,2]
[340134421,1728669051940,-481.34189845,0.00028219,2]
[340134422,1728669051951,-500.0,0.00028219,2]
[340134423,1728669051961,-509.35,0.00028219,2]
[340134424,1728669051973,-259.47,0.00028219,2]
[340134425,1728669051982,-500.0,0.00028219,2]
[340134426,1728669051992,-849.69,0.00028219,2]
[340134427,1728669052001,-177.6772069,0.00028219,2]
[340134428,1728669052011,-500.0,0.00028219,2]
[340134429,1728669052020,-500.0,0.00028219,2]
[340134430,1728669052030,-500.0,0.00028219,2]
[340134431,1728669052039,-500.0,0.00028219,2]
[340134432,1728669052048,-500.0,0.00028219,2]
[340134433,1728669052058,-929.15,0.00028219,2]
[340134434,1728669052067,-500.0,0.00028219,2]
[340134435,1728669052076,-861.93,0.00028219,2]
[340134436,1728669052085,-500.0,0.00028219,2]
[340134437,1728669052094,-500.0,0.00028219,2]
[340134438,1728669052104,-500.0,0.00028219,2]
[340134439,1728669052113,-500.0,0.00028219,2]
[340134440,1728669052122,-500.0,0.00028219,2]
[340134441,1728669052132,-227.5015717,0.00028219,2]
[340134442,1728669052141,-500.0,0.00028219,2]
[340134443,1728669052151,-500.0,0.00028219,2]
[340134444,1728669052160,-500.0,0.00028219,2]
[340134445,1728669052170,-500.0,0.00028219,2]
[340134446,1728669052182,-500.0,0.00028219,2]
[340134447,1728669052192,-670.31,0.00028219,2]
[340134448,1728669052202,-692.96,0.00028219,2]
[340134449,1728669052211,-500.0,0.00028219,2]
[340134450,1728669052221,-500.0,0.00028219,2]
[340134451,1728669052230,-500.0,0.00028219,2]
[340134452,1728669052240,-500.0,0.00028219,2]
[340134453,1728669052250,-500.0,0.00028219,2]
[340134454,1728669052259,-500.0,0.00028219,2]
[340134455,1728669052269,-528.12,0.00028219,2]
[340134456,1728669052278,-492.78757582,0.00028219,2]
[340134457,1728669052288,-500.0,0.00028219,2]
[340134458,1728669052297,-500.0,0.00028219,2]
[340134459,1728669052319,-500.0,0.00028219,2]
[340134460,1728669052329,-500.0,0.00028219,2]
[340134461,1728669052339,-500.0,0.00028219,2]
[340134462,1728669052348,-500.0,0.00028219,2]
[340134463,1728669052358,-539.94,0.00028219,2]
[340134464,1728669052368,-500.0,0.00028219,2]
[340134465,1728669052377,-568.04,0.00028219,2]
[340134466,1728669052515,-500.0,0.00028219,2]
[340134467,1728669052524,-507.24367177,0.00028219,2]
[340134468,1728669052534,-340.03122664,0.00028219,2]
[340134469,1728669052544,-500.0,0.00028219,2]
[340134470,1728669052553,-3905.76,0.00028219,2]
[340134471,1728669052563,-500.0,0.00028219,2]
[340134472,1728669052573,-1317.24,0.00028219,2]
[340134473,1728669052583,-500.0,0.00028219,2]
[340134474,1728669052592,-151.0,0.00028219,7]
[340134475,1728669052602,-500.0,0.00028219,2]
[340134476,1728669052611,-500.0,0.00028219,2]
[340134477,1728669052621,-1136.8,0.00028219,2]
[340134478,1728669052630,-500.0,0.00028219,2]
[340134479,1728669052639,-500.0,0.00028219,2]
[340134480,1728669052649,-500.0,0.00028219,2]
[340134481,1728669052658,-500.0,0.00028219,2]
[340134482,1728669052668,-500.0,0.00028219,2]
[340134483,1728669052677,-500.0,0.00028219,2]
[340134484,1728669052686,-500.0,0.00028219,2]
[340134485,1728669052696,-500.0,0.00028219,2]
[340134486,1728669052707,-875.32,0.00028219,2]
[340134487,1728669052721,-500.0,0.00028219,2]
[340134488,1728669052731,-500.0,0.00028219,2]
[340134489,1728669052741,-500.0,0.00028219,2]
[340134490,1728669052751,-500.0,0.00028219,2]
[340134491,1728669052761,-505.22,0.00028219,2]
[340134492,1728669052771,-500.0,0.00028219,2]
[340134493,1728669052780,-635.32,0.00028219,2]
[340134494,1728669052790,-500.0,0.00028219,2]
[340134495,1728669052799,-832.23,0.00028219,2]
[340134496,1728669052808,-506.41,0.00028219,2]
[340134497,1728669052818,-500.0,0.00028219,2]
[340134498,1728669052827,-500.0,0.00028219,2]
[340134499,1728669052836,-2919.17,0.00028219,2]
[340134500,1728669052849,-658.07,0.00028219,2]
[340134501,1728669052858,-509.63,0.00028219,2]
[340134502,1728669052868,-770.38,0.00028219,2]
[340134503,1728669052877,-500.0,0.00028219,2]
[340134504,1728669052887,-523.68211622,0.00028219,2]
[340134505,1728669052896,-528.60778722,0.00028219,2]
[340134506,1728669052906,-500.0,0.00028219,2]
[340134507,1728669052916,-150.0,0.00028239,2]
[340134508,1728669052925,-238.29135559,0.00028239,2]
[340134509,1728669052934,-150.0,0.00028266,7]
[340134510,1728669052943,-150.0,0.00028399,7]
[340134511,1728669052953,-1002.5,0.00028425,2]
[340134512,1728669052965,-7450.0,0.00028463,7]
[340134513,1728669052975,-180.892139,0.00028463,7]
[340134514,1728669052984,-190.751716,0.00028463,7]
[340134515,1728669052994,-180.892139,0.00028463,7]
[340134516,1728669053003,-394.871888,0.00028463,7]
[340134517,1728669053013,-394.871888,0.00028463,7]
[340134518,1728669053023,-236.386338,0.00028463,7]
[340134519,1728669053033,-236.386338,0.00028463,7]
[340134520,1728669053042,-156.360367,0.00028463,7]
[340134521,1728669053052,-2044.103329,0.00028463,7]
[340134522,1728669053061,-156.360367,0.00028463,7]
[340134523,1728669053071,-2044.103329,0.00028463,7]
[340134524,1728669053080,-2000.0,0.000285,120]
[340134525,1728669053090,-150.0,0.00028583,7]
[340134526,1728669053099,-150.0,0.00028583,7]
[340134527,1728669053108,-500.0,0.00028788,7]
[340134528,1728669053118,-186.53,0.00028797,120]
[340134529,1728669053127,-150.0,0.000289,7]
[340134530,1728669053137,-1759.21,0.00029,3]
[340134531,1728669053146,-150.0,0.00029,120]
[340134532,1728669053155,-1000.0,0.00029,2]
[340134533,1728669053165,-200.0,0.0002904,10]
[340134534,1728669053174,-3271.62,0.00029041,2]
[340134535,1728669053183,-500.0,0.00029041,2]
[340134536,1728669053193,-500.0,0.00029041,2]
[340134537,1728669053203,-500.0,0.00029041,2]
[340134538,1728669053212,-500.0,0.00029041,2]
[340134539,1728669053222,-623.48,0.00029041,2]
[340134540,1728669053232,-330.93758338,0.00029041,2]
[340134541,1728669053241,-500.0,0.00029041,2]
[340134542,1728669053251,-531.80986097,0.00029041,2]
[340134543,1728669053260,-1044.31,0.00029041,2]
[340134544,1728669053269,-500.0,0.00029041,2]
[340134545,1728669053279,-608.64,0.00029041,2]
[340134546,1728669053288,-500.0,0.00029041,2]
[340134547,1728669053297,-500.0,0.00029041,2]
[340134548,1728669053307,-500.0,0.00029041,2]
[340134549,1728669053316,-500.0,0.00029041,2]
[340134550,1728669053326,-542.26,0.00029041,2]
[340134551,1728669053335,-500.0,0.00029041,2]
[340134552,1728669053345,-623.2,0.00029041,2]
[340134553,1728669053355,-500.0,0.00029041,2]
[340134554,1728669053365,-500.0,0.00029041,2]
[340134555,1728669053374,-638.45,0.00029041,2]
[340134556,1728669053383,-474.74349488,0.00029041,2]
[340134557,1728669053393,-612.88,0.00029041,2]
[340134558,1728669053402,-833.24,0.00029041,2]
[340134559,1728669053411,-500.0,0.00029041,2]
[340134560,1728669053420,-500.0,0.00029041,2]
[340134561,1728669053430,-500.0,0.00029041,2]
[340134562,1728669053439,-519.1809395,0.00029041,2]
[340134563,1728669053448,-782.03,0.00029041,2]
[340134564,1728669053457,-500.0,0.00029041,2]
[340134565,1728669053466,-20000.0,0.00029041,2]
[340134566,1728669053476,-1198.37,0.00029041,2]
[340134567,1728669053485,-500.0,0.00029041,2]
[340134568,1728669053495,-500.0,0.00029041,2]
[340134569,1728669053504,-500.0,0.00029041,2]
[340134570,1728669053515,-500.0,0.00029041,2]
[340134571,1728669053524,-500.0,0.00029041,2]
[340134572,1728669053534,-561.48754036,0.00029041,2]
[340134573,1728669053543,-500.0,0.00029041,2]
[340134574,1728669053553,-555.87160803,0.00029041,2]
[340134575,1728669053564,-412.85497456,0.00029041,2]
[340134576,1728669053574,-1601.6,0.00029041,2]
[340134577,1728669053583,-500.0,0.00029041,2]
[340134578,1728669053592,-1185.2,0.00029041,2]
[340134579,1728669053602,-500.0,0.00029041,2]
[340134580,1728669053611,-689.79,0.00029041,2]
[340134581,1728669053620,-545.09,0.00029041,2]
[340134582,1728669053629,-223.13,0.00029041,2]
[340134583,1728669053638,-500.0,0.00029041,2]
[340134584,1728669053648,-2408.32,0.00029041,2]
[340134585,1728669053657,-500.0,0.00029041,2]
[340134586,1728669053666,-500.0,0.00029041,2]
[340134587,1728669053675,-483.77334268,0.00029041,2]
[340134588,1728669053684,-900.34,0.00029041,2]
[340134589,1728669053694,-1346.47,0.00029041,7]
[340134590,1728669053704,-500.0,0.00029041,2]
[340134591,1728669053713,-500.0,0.00029041,2]
[340134592,1728669053722,-638.56,0.00029041,2]
[340134593,1728669053732,-1086.29,0.00029041,2]
[340134594,1728669053741,-1644.73,0.00029041,2]
[340134595,1728669053750,-518.17,0.00029041,2]
[340134596,1728669053760,-616.06,0.00029041,2]
[340134597,1728669053769,-500.0,0.00029041,2]
[340134598,1728669053779,-500.0,0.00029041,2]
[340134599,1728669053788,-500.0,0.00029041,2]
[340134600,1728669053796,-929.21,0.00029041,2]
[340134601,1728669053805,-500.0,0.00029041,2]
[340134602,1728669053815,-487.1529977,0.00029041,2]
[340134603,1728669053824,-500.0,0.00029041,2]
[340134604,1728669053833,-168.56353661,0.00029041,2]
[340134605,1728669053843,-860.5,0.00029041,2]
[340134606,1728669053852,-405.00042313,0.00029041,2]
[340134607,1728669053862,-1559.13,0.00029041,2]
[340134608,1728669053872,-500.0,0.00029041,2]
[340134609,1728669053882,-500.0,0.00029041,2]
[340134610,1728669053892,-500.0,0.00029041,2]
[340134611,1728669053902,-736.29,0.00029041,2]
[340134612,1728669053911,-500.0,0.00029041,2]
[340134613,1728669053921,-500.0,0.00029041,2]
[340134614,1728669053930,-655.69,0.00029041,2]
[340134615,1728669053940,-196.79216066,0.00029041,2]
[340134616,1728669053953,-500.0,0.00029041,2]
[340134617,1728669053971,-500.0,0.00029041,2]
[340134618,1728669053980,-500.0,0.00029041,2]
[340134619,1728669053990,-956.59,0.00029041,2]
[340134620,1728669054000,-500.0,0.00029041,2]
[340134621,1728669054009,-2475.83,0.00029041,2]
[340134622,1728669054019,-554.62,0.00029041,2]
[340134623,1728669054028,-329.99303951,0.00029041,2]
[340134624,1728669054037,-921.55,0.00029041,2]
[340134625,1728669054048,-500.0,0.00029041,2]
[340134626,1728669054057,-616.63833603,0.00029041,2]
[340134627,1728669054067,-500.0,0.00029041,2]
[340134628,1728669054076,-500.0,0.00029041,2]
[340134629,1728669054086,-661.98,0.00029041,2]
[340134630,1728669054096,-500.0,0.00029041,2]
[340134631,1728669054105,-774.31,0.00029041,2]
[340134632,1728669054115,-500.0,0.00029041,2]
[340134633,1728669054123,-652.46,0.00029041,2]
[340134634,1728669054132,-500.0,0.00029041,2]
[340134635,1728669054142,-500.0,0.00029041,2]
[340134636,1728669054151,-500.0,0.00029041,2]
[340134637,1728669054160,-2496.26,0.00029041,2]
[340134638,1728669054169,-500.0,0.00029041,2]
[340134639,1728669054178,-500.0,0.00029041,2]
[340134640,1728669054187,-500.0,0.00029041,2]
[340134641,1728669054196,-500.0,0.00029041,2]
[340134642,1728669054209,-500.0,0.00029041,2]
[340134643,1728669054217,-14424.26,0.00029041,2]
[340134644,1728669054226,-500.0,0.00029041,2]
[340134645,1728669054235,-1022.42,0.00029041,2]
[340134646,1728669054244,-500.0,0.00029041,2]
[340134647,1728669054254,-500.0,0.00029041,2]
[340134648,1728669054263,-500.0,0.00029041,2]
[340134649,1728669054272,-500.0,0.00029041,2]
[340134650,1728669054281,-500.0,0.00029041,2]
[340134651,1728669054291,-573.42,0.00029041,2]
[340134652,1728669054300,-500.0,0.00029041,2]
[340134653,1728669054309,-1278.84,0.00029041,2]
[340134654,1728669054318,-1628.92,0.00029041,2]
[340134655,1728669054327,-500.0,0.00029041,2]
[340134656,1728669054336,-500.0,0.00029041,2]
[340134657,1728669054345,-500.0,0.00029041,2]
[340134658,1728669054355,-500.0,0.00029041,2]
[340134659,1728669054364,-500.0,0.00029041,2]
[340134660,1728669054373,-3741.28,0.00029041,2]
[340134661,1728669054382,-632.84872887,0.00029041,2]
[340134662,1728669054391,-634.54,0.00029041,2]
[340134663,1728669054401,-3669.49,0.00029041,2]
[340134664,1728669054409,-500.0,0.00029041,2]
[340134665,1728669054418,-500.0,0.00029041,2]
[340134666,1728669054427,-698.69,0.00029041,2]
[340134667,1728669054436,-509.35,0.00029041,2]
[340134668,1728669054445,-500.0,0.00029041,2]
[340134669,1728669054456,-259.47,0.00029041,2]
[340134670,1728669054465,-500.0,0.00029041,2]
[340134671,1728669054474,-849.69,0.00029041,2]
[340134672,1728669054483,-500.0,0.00029041,2]
[340134673,1728669054492,-500.0,0.00029041,2]
[340134674,1728669054501,-322.50572407,0.00029041,2]
[340134675,1728669054511,-421.52005935,0.00029041,2]
[340134676,1728669054520,-535.28902426,0.00029041,2]
[340134677,1728669054529,-929.15,0.00029041,2]
[340134678,1728669054538,-500.0,0.00029041,2]
[340134679,1728669054547,-861.93,0.00029041,2]
[340134680,1728669054556,-500.0,0.00029041,2]
[340134681,1728669054566,-500.0,0.00029041,2]
[340134682,1728669054575,-500.0,0.00029041,2]
[340134683,1728669054584,-500.0,0.00029041,2]
[340134684,1728669054593,-500.0,0.00029041,2]
[340134685,1728669054602,-500.0,0.00029041,2]
[340134686,1728669054611,-500.0,0.00029041,2]
[340134687,1728669054620,-500.0,0.00029041,2]
[340134688,1728669054630,-500.0,0.00029041,2]
[340134689,1728669054639,-500.0,0.00029041,2]
[340134690,1728669054649,-670.31,0.00029041,2]
[340134691,1728669054658,-692.96,0.00029041,2]
[340134692,1728669054667,-500.0,0.00029041,2]
[340134693,1728669054676,-500.0,0.00029041,2]
[340134694,1728669054685,-584.5,0.00029041,2]
[340134695,1728669054694,-500.0,0.00029041,2]
[340134696,1728669054706,-500.0,0.00029041,2]
[340134697,1728669054715,-500.0,0.00029041,2]
[340134698,1728669054724,-528.12,0.00029041,2]
[340134699,1728669054733,-533.1615434,0.00029041,2]
[340134700,1728669054742,-500.0,0.00029041,2]
[340134701,1728669054752,-500.0,0.00029041,2]
[340134702,1728669054761,-500.0,0.00029041,2]
[340134703,1728669054771,-500.0,0.00029041,2]
[340134704,1728669054780,-289.94528599,0.00029041,2]
[340134705,1728669054789,-539.94,0.00029041,2]
[340134706,1728669054799,-500.0,0.00029041,2]
[340134707,1728669054808,-568.04,0.00029041,2]
[340134708,1728669054817,-500.0,0.00029041,2]
[340134709,1728669054827,-500.0,0.00029041,2]
[340134710,1728669054837,-3905.76,0.00029041,2]
[340134711,1728669054846,-500.0,0.00029041,2]
[340134712,1728669054856,-1317.24,0.00029041,2]
[340134713,1728669054866,-500.0,0.00029041,2]
[340134714,1728669054875,-151.0,0.00029041,7]
[340134715,1728669054885,-500.0,0.00029041,2]
[340134716,1728669054894,-500.0,0.00029041,2]
[340134717,1728669055014,-1136.8,0.00029041,2]
[340134718,1728669055024,-189.66873394,0.00029041,2]
[340134719,1728669055034,-500.0,0.00029041,2]
[340134720,1728669055043,-500.0,0.00029041,2]
[340134721,1728669055052,-500.0,0.00029041,2]
[340134722,1728669055061,-500.0,0.00029041,2]
[340134723,1728669055071,-500.0,0.00029041,2]
[340134724,1728669055080,-500.0,0.00029041,2]
[340134725,1728669055089,-612.44276782,0.00029041,2]
[340134726,1728669055099,-875.32,0.00029041,2]
[340134727,1728669055108,-500.0,0.00029041,2]
[340134728,1728669055116,-320.72380898,0.00029041,2]
[340134729,1728669055126,-500.0,0.00029041,2]
[340134730,1728669055135,-500.0,0.00029041,2]
[340134731,1728669055144,-505.22,0.00029041,2]
[340134732,1728669055153,-500.0,0.00029041,2]
[340134733,1728669055162,-635.32,0.00029041,2]
[340134734,1728669055172,-500.0,0.00029041,2]
[340134735,1728669055181,-832.23,0.00029041,2]
[340134736,1728669055191,-506.41,0.00029041,2]
[340134737,1728669055200,-500.0,0.00029041,2]
[340134738,1728669055209,-500.0,0.00029041,2]
[340134739,1728669055218,-79.26234647,0.00029041,2]
[340134740,1728669055431,-288.19605777,0.00029041,2]
[340134741,1728669055442,-2551.71159576,0.00029041,2]
[340134742,1728669055452,-658.07,0.00029041,2]
[340134743,1728669055462,-509.63,0.00029041,2]
[340134744,1728669055471,-770.38,0.00029041,2]
[340134745,1728669055480,-500.0,0.00029041,2]
[340134746,1728669055489,-500.0,0.00029041,2]
[340134747,1728669055498,-150.0,0.00029043,7]
[340134748,1728669055507,-150.0,0.00029059,7]
[340134749,1728669055516,-306.2,0.00029075,2]
[340134750,1728669055525,-651.65426793,0.00029166,2]
[340134751,1728669055534,-150.0,0.00029217,7]
[340134752,1728669055544,-534.7,0.00029282,2]
[340134753,1728669055553,-500.66,0.00029396,2]
[340134754,1728669055562,-1002.5,0.0002951,2]
[340134755,1728669055571,-150.0,0.00029534,7]
[340134756,1728669055580,-150.0,0.00029534,7]
[340134757,1728669055589,-150.0,0.00029688,7]
[340134758,1728669055599,-150.0,0.00029851,7]
[340134759,1728669055607,-310.83318321,0.00029862,10]
[340134760,1728669055616,-3271.62,0.00029863,2]
[340134761,1728669055625,-500.0,0.00029863,2]
[340134762,1728669055635,-502.32444283,0.00029863,2]
[340134763,1728669055644,-500.0,0.00029863,2]
[340134764,1728669055653,-500.0,0.00029863,2]
[340134765,1728669055662,-623.48,0.00029863,2]
[340134766,1728669055671,-500.0,0.00029863,2]
[340134767,1728669055680,-1044.31,0.00029863,2]
[340134768,1728669055689,-500.0,0.00029863,2]
[340134769,1728669055698,-608.64,0.00029863,2]
[340134770,1728669055706,-500.0,0.00029863,2]
[340134771,1728669055715,-500.0,0.00029863,2]
[340134772,1728669055724,-500.0,0.00029863,2]
[340134773,1728669055733,-500.0,0.00029863,2]
[340134774,1728669055743,-542.26,0.00029863,2]
[340134775,1728669055752,-151.0,0.00029863,7]
[340134776,1728669055761,-500.0,0.00029863,2]